bitfinex-derivatives/quotes_BTCF0:USTF0_20250405
["timestamp","ask_amount","ask_price","bid_price","bid_amount"]
[1743846480951,0.39467846,83868.0,83867.0,0.1761888]
[1743846481456,0.06567846,83868.0,83867.0,0.1761888]
[1743846484752,0.06567846,83868.0,83867.0,0.1441888]
[1743846488351,0.00137846,83868.0,83867.0,0.1441888]
[1743846493563,0.06657846,83868.0,83867.0,0.1441888]
[1743846498751,0.06657846,83868.0,83867.0,1.6136888]
[1743846498955,0.15006626,83868.0,83867.0,0.0302]
[1743846499154,0.15006626,83868.0,83867.0,0.1136888]
[1743846502567,0.06657846,83868.0,83867.0,0.1136888]
[1743846509375,0.42737846,83868.0,83867.0,0.1136888]
[1743846514974,0.51086626,83868.0,83867.0,0.1136888]
[1743846520481,0.15006626,83868.0,83867.0,0.1136888]
[1743846535004,0.15006626,83868.0,83867.0,0.0302]
[1743846535203,0.15006626,83868.0,83867.0,0.1136888]
[1743846539493,0.03347846,83868.0,83867.0,0.1136888]
[1743846539810,0.00137846,83868.0,83867.0,0.1781888]
[1743846540011,0.08486626,83868.0,83867.0,0.1781888]
[1743846540201,0.00137846,83868.0,83867.0,0.1781888]
[1743846540909,0.00017845,83868.0,83867.0,0.1781888]
[1743846545007,0.00017845,83868.0,83867.0,0.1787888]
[1743846547611,0.08366625,83868.0,83867.0,0.1787888]
[1743846547913,0.00017845,83868.0,83867.0,0.1787888]
[1743846552211,0.00133845,83868.0,83867.0,0.1787888]
[1743846554913,0.00017845,83868.0,83867.0,0.1787888]
[1743846555217,0.00133845,83868.0,83867.0,0.1787888]
[1743846555906,0.06303845,83868.0,83867.0,0.1787888]
[1743846558222,0.06303845,83868.0,83867.0,0.1785888]
[1743846565125,0.06303845,83868.0,83867.0,0.1453888]
[1743846567828,0.06303845,83868.0,83867.0,1.6453888]
[1743846568027,0.06187845,83868.0,83867.0,1.6453888]
[1743846570127,0.06187845,83868.0,83867.0,1.6140888]
[1743846572229,0.06187845,83868.0,83867.0,1.5306]
[1743846572432,0.14536625,83868.0,83867.0,1.5306]
[1743846572630,0.14648626,83868.0,83867.0,1.5306]
[1743846572822,0.14648626,83868.0,83867.0,0.0006]
[1743846573026,0.0834908,83865.0,83864.0,0.0303]
[1743846573522,0.14801081,83865.0,83864.0,0.0303]
[1743846576235,0.14801081,83865.0,83864.0,0.1137918]
[1743846580437,0.06452001,83865.0,83864.0,0.1137918]
[1743846583237,0.14801081,83865.0,83864.0,0.1137918]
[1743846583435,0.14801081,83865.0,83864.0,0.0303]
[1743846584438,0.14801081,83865.0,83864.0,0.1137918]
[1743846585438,0.06452001,83865.0,83864.0,0.1137918]
[1743846593647,0.06452001,83865.0,83864.0,0.1439918]
[1743846593944,0.00112001,83865.0,83864.0,0.1439918]
[1743846594537,8e-05,83866.0,83865.0,0.0834908]
[1743846594948,8e-05,83866.0,83865.0,0.1764908]
[1743846595150,0.00120001,83866.0,83865.0,0.1770908]
[1743846596140,8e-05,83866.0,83865.0,0.1770908]
[1743846596341,0.00017845,83868.0,83867.0,0.0834888]
[1743846596655,0.00137846,83868.0,83867.0,0.0841688]
[1743846596946,0.00137846,83868.0,83867.0,0.1479688]
[1743846597650,0.00017845,83868.0,83867.0,0.1479688]
[1743846598047,0.00137846,83868.0,83867.0,0.1479688]
[1743846600844,0.03167846,83868.0,83867.0,0.1479688]
[1743846602356,0.06437846,83868.0,83867.0,0.1479688]
[1743846604256,0.14786626,83868.0,83867.0,0.03128]
[1743846604655,0.0417454,83865.0,83860.0,0.0417477]
[1743846604957,0.0834948,83861.0,83860.0,0.0417477]
[1743846605345,0.0834968,83859.0,83858.0,0.4442978]
[1743846605664,0.1161958,83860.0,83859.0,0.0834968]
[1743846605954,0.0834968,83859.0,83858.0,0.4442978]
[1743846606160,0.1163968,83859.0,83858.0,0.0834978]
[1743846606361,0.1490968,83859.0,83858.0,0.0834978]
[1743846606857,0.0834998,83856.0,83855.0,0.00017882]
[1743846607155,0.0834998,83856.0,83855.0,0.08367962]
[1743846607355,0.1161998,83856.0,83855.0,0.08367962]
[1743846607958,0.1462998,83856.0,83855.0,0.08367962]
[1743846608963,0.1462998,83856.0,83855.0,0.00017882]
[1743846610361,0.1462998,83856.0,83855.0,0.08367962]
[1743846610862,0.1462998,83856.0,83855.0,0.00017882]
[1743846611669,0.1462998,83856.0,83855.0,0.08367962]
[1743846611961,0.1476598,83856.0,83855.0,0.08367962]
[1743846612260,0.1476598,83856.0,83855.0,0.00017882]
[1743846612450,0.1476598,83856.0,83855.0,0.08367962]
[1743846615754,0.1476598,83856.0,83855.0,0.00017882]
[1743846617454,0.5084598,83856.0,83855.0,0.00017882]
[1743846618962,0.5588598,83856.0,83855.0,0.00017882]
[1743846619170,0.0417552,83846.0,83842.0,0.0835122]
[1743846619361,0.1349554,83845.0,83844.0,0.0835117]
[1743846619557,0.1362754,83845.0,83844.0,0.0835117]
[1743846619761,0.0835127,83843.0,83842.0,1.5]
[1743846619959,0.0835127,83843.0,83842.0,1.4598256]
[1743846620164,0.0417568,83842.0,83840.0,0.0835149]
[1743846620357,0.0835174,83839.0,83838.0,0.0835167]
[1743846620859,0.1440174,83839.0,83838.0,0.1670337]
[1743846621063,0.0835177,83838.0,83837.0,0.0314]
[1743846621265,0.0835204,83837.0,83836.0,0.0835187]
[1743846621466,0.0622,83837.0,83836.0,0.1670381]
[1743846624154,0.0223085,83842.0,83841.0,0.0835147]
[1743846624355,8e-05,83857.0,83850.0,0.0835057]
[1743846624756,8e-05,83857.0,83850.0,1.6456057]
[1743846626464,8e-05,83857.0,83850.0,0.1456057]
[1743846629060,0.02207172,83851.0,83850.0,0.1456057]
[1743846635274,0.02207172,83851.0,83850.0,0.1757057]
[1743846649595,0.02207172,83851.0,83850.0,0.1456057]
[1743846653798,0.02207172,83851.0,83850.0,0.1137057]
[1743846657286,0.02207172,83851.0,83850.0,0.0835057]
[1743846658205,0.11417172,83851.0,83850.0,0.0835057]
[1743846659402,0.11557173,83851.0,83850.0,0.0835057]
[1743846659805,0.19907643,83851.0,83850.0,0.0835057]
[1743846661405,0.11557173,83851.0,83850.0,0.0835057]
[1743846662505,0.11557173,83851.0,83850.0,0.1162057]
[1743846668808,0.05507173,83851.0,83850.0,0.1162057]
[1743846669008,0.05507173,83851.0,83850.0,0.1493057]
[1743846669213,0.05367172,83851.0,83850.0,0.1493057]
[1743846669514,0.08477172,83851.0,83850.0,0.1493057]
[1743846675313,0.08609172,83851.0,83850.0,0.1493057]
[1743846676907,0.08609172,83851.0,83850.0,0.1162057]
[1743846685422,0.08609172,83851.0,83850.0,0.1477057]
[1743846685815,0.02339172,83851.0,83850.0,0.1477057]
[1743846686122,0.02207172,83851.0,83850.0,0.1477057]
[1743846686723,0.02207172,83851.0,83850.0,0.5085057]
[1743846686919,8e-05,83864.0,83850.0,0.73824017]
[1743846687124,0.0329,83874.0,83873.0,0.0834828]
[1743846687331,0.03430001,83874.0,83873.0,0.4442828]
[1743846687522,0.0851921,83884.0,83873.0,0.4025411]
[1743846687523,0.0004,83884.0,83873.0,0.4025411]
[1743846687818,0.0004,83884.0,83882.0,0.0834739]
[1743846687819,0.0329,83883.0,83882.0,0.0834739]
[1743846688011,0.0656,83883.0,83882.0,0.1159739]
[1743846688217,0.06700001,83883.0,83882.0,0.1159739]
[1743846689025,0.08695179,83883.0,83882.0,0.1159739]
[1743846689617,0.08555178,83883.0,83882.0,0.1159739]
[1743846690518,0.08695179,83883.0,83882.0,0.1159739]
[1743846692625,0.08695179,83883.0,83882.0,0.1467739]
[1743846698729,0.08695179,83883.0,83882.0,0.1159739]
[1743846703819,0.02135179,83883.0,83882.0,0.4767739]
[1743846704024,0.00017845,83887.0,83886.0,0.0834699]
[1743846704236,0.00109845,83887.0,83886.0,0.0834699]
[1743846704533,0.02004584,83887.0,83886.0,1.6784699]
[1743846705327,0.02004584,83887.0,83886.0,1.6790699]
[1743846708639,0.02004584,83887.0,83886.0,0.1790699]
[1743846719353,0.05044584,83887.0,83886.0,0.1790699]
[1743846719852,0.05044584,83887.0,83886.0,0.0840699]
[1743846720053,0.08234584,83887.0,83886.0,0.0834699]
[1743846720256,0.1252075,83886.0,83885.0,0.0834699]
[1743846720552,0.0738349,83886.0,83885.0,0.0834699]
[1743846720745,0.1042349,83886.0,83885.0,0.0834699]
[1743846721558,0.1051549,83886.0,83885.0,0.0834699]
[1743846723256,0.06342,83886.0,83885.0,0.0834699]
[1743846723456,0.06342,83886.0,83885.0,0.1146699]
[1743846725058,0.06342,83886.0,83885.0,0.1156699]
[1743846725447,0.06342,83886.0,83885.0,1.6156699]
[1743846726257,0.06342,83886.0,83885.0,1.6458699]
[1743846726556,0.00092,83886.0,83885.0,1.6156699]
[1743846726750,0.01912584,83887.0,83886.0,0.0834699]
[1743846726952,0.01912584,83887.0,83886.0,0.0840699]
[1743846727149,0.01912584,83887.0,83886.0,0.1469699]
[1743846727545,0.01912584,83887.0,83886.0,1.6469699]
[1743846729561,0.03078,83893.0,83892.0,0.0834639]
[1743846729755,0.03078,83893.0,83892.0,0.0841039]
[1743846729957,0.03078,83893.0,83892.0,0.1168039]
[1743846730157,0.03178,83893.0,83892.0,0.1168039]
[1743846731162,0.03178,83893.0,83892.0,0.1468039]
[1743846731462,0.03078,83893.0,83892.0,0.1468039]
[1743846732764,0.04915944,83893.0,83892.0,0.1468039]
[1743846733258,0.05015944,83893.0,83892.0,0.1468039]
[1743846733959,0.01845944,83893.0,83892.0,0.1468039]
[1743846734465,0.01941945,83893.0,83892.0,0.1468039]
[1743846737366,0.01845944,83893.0,83892.0,0.1468039]
[1743846737969,0.01929944,83893.0,83892.0,0.1468039]
[1743846745562,0.08459944,83893.0,83892.0,0.1468039]
[1743846746759,0.05139944,83893.0,83892.0,0.1468039]
[1743846760975,0.05139944,83893.0,83892.0,0.1168039]
[1743846766573,0.01929944,83893.0,83892.0,0.1168039]
[1743846766783,0.01929944,83893.0,83892.0,0.1778039]
[1743846766981,0.01837944,83893.0,83892.0,0.1778039]
[1743846767278,0.0309,83894.0,83893.0,0.0834629]
[1743846767579,0.03182,83894.0,83893.0,0.1448629]
[1743846768279,0.0309,83894.0,83893.0,0.1448629]
[1743846769681,0.05439966,83894.0,83893.0,0.1448629]
[1743846769876,0.05439966,83894.0,83893.0,0.1145629]
[1743846770076,0.05531966,83894.0,83893.0,0.0840629]
[1743846774177,0.05531966,83894.0,83893.0,0.1141629]
[1743846777985,0.05439966,83894.0,83893.0,0.1141629]
[1743846778687,0.05539966,83894.0,83893.0,0.1141629]
[1743846778891,0.05439966,83894.0,83893.0,0.1141629]
[1743846781289,0.05539966,83894.0,83893.0,0.1141629]
[1743846781591,0.05439966,83894.0,83893.0,0.0840629]
[1743846781780,0.05531966,83894.0,83893.0,0.0840629]
[1743846786893,0.41611966,83894.0,83893.0,0.0840629]
[1743846794396,0.05531966,83894.0,83893.0,0.0840629]
[1743846796983,0.05531966,83894.0,83893.0,0.115188]
[1743846802295,0.05531966,83894.0,83893.0,0.506988]
[1743846803406,0.11671966,83894.0,83893.0,0.146188]
[1743846814712,0.08641966,83894.0,83893.0,0.146188]
[1743846818818,0.08641966,83894.0,83893.0,0.115188]
[1743846832422,0.08641966,83894.0,83893.0,0.147588]
[1743846833425,0.02441966,83894.0,83893.0,0.147588]
[1743846834431,0.02349966,83894.0,83893.0,0.147588]
[1743846834625,0.0309,83899.0,83898.0,0.083458]
[1743846835025,0.0309,83899.0,83898.0,0.114738]
[1743846835026,0.0319,83899.0,83898.0,0.114738]
[1743846836929,0.0634,83899.0,83898.0,0.147038]
[1743846837329,0.09302206,83899.0,83898.0,0.147038]
[1743846840234,0.0631,83907.0,83906.0,0.08345]
[1743846840536,0.02113195,83907.0,83906.0,0.08345]
[1743846840734,8e-05,83909.0,83908.0,0.083448]
[1743846840935,0.60868,83913.0,83912.0,0.083444]
[1743846841230,0.60876,83913.0,83912.0,0.083444]
[1743846841431,0.60876,83913.0,83912.0,0.145844]
[1743846843133,0.63733872,83913.0,83912.0,0.145844]
[1743846844428,0.63725872,83913.0,83912.0,0.145844]
[1743846845125,0.63789872,83913.0,83912.0,0.146484]
[1743846850027,0.66839872,83913.0,83912.0,0.146484]
[1743846850228,0.66839872,83913.0,83912.0,0.145844]
[1743846850630,0.66839872,83913.0,83912.0,0.146524]
[1743846850928,0.66839872,83913.0,83912.0,0.145844]
[1743846851328,0.66839872,83913.0,83912.0,0.146444]
[1743846852435,0.63789872,83913.0,83912.0,0.146444]
[1743846855532,0.66879872,83913.0,83912.0,0.146444]
[1743846857843,0.06011872,83913.0,83912.0,0.146444]
[1743846858035,0.05947872,83913.0,83912.0,0.146444]
[1743846858631,0.06007873,83913.0,83912.0,0.146444]
[1743846858839,0.05947872,83913.0,83912.0,0.146444]
[1743846860245,0.09037872,83913.0,83912.0,0.146444]
[1743846860734,0.12161872,83913.0,83912.0,0.146444]
[1743846862946,0.12097872,83913.0,83912.0,0.146444]
[1743846863346,0.12157873,83913.0,83912.0,0.146444]
[1743846865649,0.12097872,83913.0,83912.0,0.146444]
[1743846867750,0.12157873,83913.0,83912.0,0.146444]
[1743846868047,0.12097872,83913.0,83912.0,0.146444]
[1743846868549,0.05947872,83913.0,83912.0,0.146444]
[1743846868748,0.05947872,83913.0,83912.0,0.177944]
[1743846874453,0.05947872,83913.0,83912.0,0.146444]
[1743846880055,0.06007873,83913.0,83912.0,0.146444]
[1743846880256,0.05947872,83913.0,83912.0,0.146444]
[1743846884350,0.06007873,83913.0,83912.0,0.146444]
[1743846884552,0.05947872,83913.0,83912.0,0.146444]
[1743846885470,0.06015872,83913.0,83912.0,0.146444]
[1743846885661,0.05947872,83913.0,83912.0,0.146444]
[1743846886554,0.06007873,83913.0,83912.0,0.146444]
[1743846886853,0.05947872,83913.0,83912.0,0.146444]
[1743846888455,0.06011872,83913.0,83912.0,0.146444]
[1743846888958,0.05947872,83913.0,83912.0,0.146444]
[1743846891668,0.06011872,83913.0,83912.0,0.146444]
[1743846891868,0.05947872,83913.0,83912.0,0.146444]
[1743846892558,0.06011872,83913.0,83912.0,0.146444]
[1743846892958,0.05947872,83913.0,83912.0,0.146444]
[1743846894567,0.06007873,83913.0,83912.0,0.146444]
[1743846895163,0.05947872,83913.0,83912.0,0.146444]
[1743846896758,0.06015872,83913.0,83912.0,0.146444]
[1743846900864,0.06015872,83913.0,83912.0,0.084044]
[1743846903777,0.06015872,83913.0,83912.0,0.147044]
[1743846904272,0.06015872,83913.0,83912.0,1.647044]
[1743846906976,0.05947872,83913.0,83912.0,1.647044]
[1743846910872,0.05947872,83913.0,83912.0,0.147044]
[1743846911077,0.06007873,83913.0,83912.0,0.147044]
[1743846911876,0.02917873,83913.0,83912.0,0.147044]
[1743846912373,0.06147873,83913.0,83912.0,0.147044]
[1743846912974,0.02917873,83913.0,83912.0,0.147044]
[1743846923388,0.02917873,83913.0,83912.0,1.647044]
[1743846923581,0.02857872,83913.0,83912.0,1.647044]
[1743846923783,8e-05,83914.0,83913.0,0.083443]
[1743846923983,8e-05,83914.0,83913.0,0.084083]
[1743846924296,8e-05,83914.0,83913.0,0.148683]
[1743846925790,0.03713825,83914.0,83913.0,0.148683]
[1743846925991,0.03773826,83914.0,83913.0,0.148683]
[1743846930888,0.0316,83918.0,83917.0,0.0834391]
[1743846931087,0.0316,83918.0,83917.0,0.0841991]
[1743846931388,0.0629,83921.0,83919.0,0.0834371]
[1743846931582,0.0629,83921.0,83919.0,0.0842371]
[1743846931783,0.0629,83921.0,83919.0,0.1459371]
[1743846932088,0.06298,83921.0,83919.0,0.1459371]
[1743846932289,8e-05,83927.0,83926.0,0.0834301]
[1743846932488,0.0313,83928.0,83927.0,0.1251436]
[1743846932690,0.03206,83928.0,83927.0,0.1251436]
[1743846932890,0.03206,83928.0,83927.0,0.1570036]
[1743846934502,0.06536,83928.0,83927.0,0.1570036]
[1743846935485,0.09606,83928.0,83927.0,0.1570036]
[1743846936286,0.09606,83928.0,83927.0,0.1259036]
[1743846936587,0.09606,83928.0,83927.0,0.1583036]
[1743846936794,0.13289001,83928.0,83927.0,0.1583036]
[1743846950198,0.13289001,83928.0,83927.0,0.1259036]
[1743846951499,0.13289001,83928.0,83927.0,0.1569036]
[1743846953693,0.07089001,83928.0,83927.0,0.1569036]
[1743846953895,0.07081001,83928.0,83927.0,0.2193036]
[1743846956306,0.10111001,83928.0,83927.0,0.2193036]
[1743846959107,0.10111001,83928.0,83927.0,0.1569036]
[1743846959313,0.13131001,83928.0,83927.0,0.1569036]
[1743846962811,0.13131001,83928.0,83927.0,0.03176]
[1743846963004,0.13131001,83928.0,83927.0,0.1144291]
[1743846963206,0.13131001,83928.0,83927.0,0.1151891]
[1743846968713,0.49211001,83928.0,83927.0,0.1151891]
[1743846970711,0.13131001,83928.0,83927.0,0.1151891]
[1743846970914,0.49211001,83928.0,83927.0,0.1151891]
[1743846971515,0.13131001,83928.0,83927.0,0.1151891]
[1743846971710,0.49211001,83928.0,83927.0,0.1151891]
[1743846976617,0.49211001,83928.0,83927.0,0.1466891]
[1743846976817,0.46191001,83928.0,83927.0,0.1466891]
[1743846977020,0.46191001,83928.0,83927.0,0.1770891]
[1743846977208,0.43161001,83928.0,83927.0,0.1770891]
[1743846984118,0.39831001,83928.0,83927.0,0.1770891]
[1743846989514,0.43141001,83928.0,83927.0,0.1770891]
[1743846989726,0.39831001,83928.0,83927.0,0.1770891]
[1743846992829,0.42981001,83928.0,83927.0,0.1770891]
[1743846993322,0.39831001,83928.0,83927.0,0.1770891]
[1743846998044,0.03751001,83928.0,83927.0,0.1770891]
[1743846998236,0.39831001,83928.0,83927.0,0.1770891]
[1743847004041,8e-05,83937.0,83933.0,0.0417112]
[1743847004234,8e-05,83937.0,83936.0,0.4442202]
[1743847004434,0.001,83937.0,83936.0,0.5081402]
[1743847004837,8e-05,83937.0,83936.0,0.5081402]
[1743847005129,0.001,83937.0,83936.0,0.5081402]
[1743847005344,0.04578438,83937.0,83936.0,0.5081402]
[1743847013437,0.04670438,83937.0,83936.0,0.5081402]
[1743847014849,0.07970438,83937.0,83936.0,0.5081402]
[1743847015550,0.07878438,83937.0,83936.0,0.5081402]
[1743847020158,0.07970438,83937.0,83936.0,0.5081402]
[1743847022257,0.16312358,83937.0,83936.0,0.4451402]
[1743847022650,0.19422358,83937.0,83936.0,0.4451402]
[1743847023262,0.11080438,83937.0,83936.0,0.4451402]
[1743847025762,0.11080438,83937.0,83936.0,0.4784402]
[1743847032067,0.11072438,83937.0,83936.0,0.4784402]
[1743847034768,0.11072438,83937.0,83936.0,0.5084402]
[1743847037367,0.11072438,83937.0,83936.0,0.4784402]
[1743847037664,0.19414358,83937.0,83936.0,0.4784402]
[1743847037863,0.19414358,83937.0,83936.0,0.4451402]
[1743847038072,0.19414358,83937.0,83936.0,0.00092]
[1743847038269,0.19414358,83937.0,83933.0,0.0834222]
[1743847038270,0.0417106,83935.0,83933.0,0.0834222]
[1743847038472,0.0417106,83935.0,83933.0,0.0843422]
[1743847038473,0.1795232,83934.0,83933.0,0.0843422]
[1743847038972,0.0961,83934.0,83933.0,0.0843422]
[1743847039472,0.0961,83934.0,83933.0,0.1168422]
[1743847039872,0.0961,83934.0,83933.0,0.03342]
[1743847039873,0.1795222,83934.0,83933.0,0.03342]
[1743847040170,0.09678,83934.0,83933.0,0.1168432]
[1743847040878,0.1802022,83934.0,83933.0,0.1168432]
[1743847041176,0.09678,83934.0,83933.0,0.1168432]
[1743847044071,0.1802022,83934.0,83933.0,0.00092]
[1743847044376,0.0834278,83930.0,83929.0,0.0834248]
[1743847044567,0.08402781,83930.0,83929.0,0.0834248]
[1743847044768,0.08402781,83930.0,83929.0,0.0843448]
[1743847045367,0.08402781,83930.0,83929.0,0.1677717]
[1743847045568,0.00060001,83930.0,83929.0,0.1677717]
[1743847045772,0.03100001,83930.0,83929.0,0.1677717]
[1743847045969,0.03100001,83930.0,83929.0,0.2295717]
[1743847046781,0.06140001,83930.0,83929.0,0.2295717]
[1743847047276,0.14482611,83930.0,83929.0,0.2295717]
[1743847047679,0.06140001,83930.0,83929.0,0.2295717]
[1743847050368,0.14482611,83930.0,83929.0,0.1159471]
[1743847050579,0.14482611,83930.0,83929.0,0.1150271]
[1743847050785,0.14482611,83930.0,83929.0,0.1160271]
[1743847051080,0.06140001,83930.0,83929.0,0.1160271]
[1743847051881,0.14482611,83930.0,83929.0,0.0844271]
[1743847052275,0.14482611,83930.0,83929.0,0.1161271]
[1743847054580,0.03100001,83930.0,83929.0,0.1161271]
[1743847054788,0.00060001,83930.0,83929.0,0.1468271]
[1743847055385,8e-05,83931.0,83930.0,0.0834261]
[1743847055586,8e-05,83931.0,83930.0,0.0843861]
[1743847055885,8e-05,83931.0,83930.0,0.1481861]
[1743847064180,0.03308,83931.0,83930.0,0.1481861]
[1743847065396,0.03308,83931.0,83930.0,0.06476]
[1743847065695,0.03308,83931.0,83930.0,0.1481861]
[1743847068499,0.1165051,83931.0,83930.0,0.1481861]
[1743847068698,0.03308,83931.0,83930.0,0.1481861]
[1743847074801,0.06578,83931.0,83930.0,0.1481861]
[1743847075301,0.09828,83931.0,83930.0,0.1481861]
[1743847076102,0.06578,83931.0,83930.0,0.1481861]
[1743847076801,0.1492051,83931.0,83930.0,0.1481861]
[1743847077503,0.06578,83931.0,83930.0,0.1481861]
[1743847078108,0.1492051,83931.0,83930.0,0.1481861]
[1743847078294,0.06578,83931.0,83930.0,0.1162861]
[1743847079607,0.06578,83931.0,83930.0,0.1473861]
[1743847080006,0.1492051,83931.0,83930.0,0.1473861]
[1743847080406,0.1492051,83931.0,83930.0,0.1162861]
[1743847082104,0.06578,83931.0,83930.0,0.1162861]
[1743847082303,0.06578,83931.0,83930.0,0.1479861]
[1743847084511,0.0657,83931.0,83930.0,0.1479861]
[1743847085921,0.1491251,83931.0,83930.0,0.03286]
[1743847086118,0.1491251,83931.0,83930.0,0.1153261]
[1743847086417,0.1491251,83931.0,83930.0,0.1162461]
[1743847088214,0.1491251,83931.0,83930.0,0.1487461]
[1743847090523,0.14972511,83931.0,83930.0,0.1487461]
[1743847092118,0.06630001,83931.0,83930.0,0.1487461]
[1743847092325,0.03360001,83931.0,83930.0,0.1487461]
[1743847092825,0.11702511,83931.0,83930.0,0.1487461]
[1743847093824,0.14862511,83931.0,83930.0,0.1487461]
[1743847097517,0.14862511,83931.0,83930.0,0.1485712]
[1743847099322,0.06520001,83931.0,83930.0,0.1485712]
[1743847100024,0.14862511,83931.0,83930.0,0.1485712]
[1743847100527,0.06520001,83931.0,83930.0,0.1485712]
[1743847100827,0.03360001,83931.0,83930.0,0.1485712]
[1743847101028,0.00060001,83931.0,83930.0,0.1485712]
[1743847101926,0.00060001,83931.0,83930.0,0.0904712]
[1743847104925,0.03320001,83931.0,83930.0,0.0904712]
[1743847105129,0.03320001,83931.0,83930.0,0.1224712]
[1743847105826,0.11662511,83931.0,83930.0,0.1224712]
[1743847106025,0.03320001,83931.0,83930.0,0.1224712]
[1743847114636,0.00060001,83931.0,83930.0,0.1224712]
[1743847118540,0.03328,83932.0,83931.0,0.0834251]
[1743847118739,0.03328,83932.0,83931.0,0.0844251]
[1743847118932,0.03328,83932.0,83931.0,0.1486251]
[1743847127842,0.03328,83932.0,83931.0,0.1092351]
[1743847129740,0.03328,83932.0,83931.0,0.0652]
[1743847130145,0.03328,83932.0,83931.0,0.1486251]
[1743847130945,0.06388,83932.0,83931.0,0.1486251]
[1743847147049,0.0638,83932.0,83931.0,0.1486251]
[1743847149243,0.04570438,83937.0,83936.0,0.0834202]
[1743847149443,8e-05,83939.0,83938.0,0.0834182]
[1743847149752,8e-05,83939.0,83938.0,0.0843382]
[1743847150047,8e-05,83942.0,83940.0,0.0834162]
[1743847150251,0.60904001,83941.0,83940.0,0.0843362]
[1743847150451,0.60904001,83941.0,83940.0,0.1168362]
[1743847151053,0.3608,83948.0,83947.0,0.0834092]
[1743847151250,0.36148001,83948.0,83947.0,0.0845292]
[1743847151449,0.36148001,83948.0,83947.0,0.1470292]
[1743847152756,0.38985757,83948.0,83947.0,0.1470292]
[1743847153956,0.02905757,83948.0,83947.0,0.1470292]
[1743847157660,0.02897757,83948.0,83947.0,0.1470292]
[1743847160757,0.02897757,83948.0,83947.0,0.5078292]
[1743847160953,0.02837756,83948.0,83947.0,0.5078292]
[1743847161259,8e-05,83949.0,83948.0,0.0834083]
[1743847161459,0.02891976,83949.0,83948.0,0.0846083]
[1743847161756,0.02891976,83949.0,83948.0,0.1178083]
[1743847162966,0.02883976,83949.0,83948.0,0.1178083]
[1743847163166,8e-05,83950.0,83949.0,0.0834073]
[1743847163363,8e-05,83950.0,83949.0,0.0845273]
[1743847163567,8e-05,83950.0,83949.0,0.1151273]
[1743847164462,0.0004,83956.0,83955.0,0.0834013]
[1743847164764,0.0004,83956.0,83955.0,0.0845213]
[1743847165061,0.0004,83956.0,83955.0,0.1472213]
[1743847165662,0.02966013,83956.0,83955.0,0.1472213]
[1743847165969,0.0004,83956.0,83955.0,0.1472213]
[1743847166366,0.0004,83956.0,83955.0,0.1461013]
[1743847167273,0.0004,83956.0,83955.0,0.1472613]
[1743847167778,0.0004,83956.0,83955.0,0.1782013]
[1743847167970,0.0004,83956.0,83955.0,0.1793613]
[1743847168169,0.0004,83956.0,83955.0,0.1487613]
[1743847168469,0.0647,83956.0,83955.0,0.1487613]
[1743847168870,0.0322,83956.0,83955.0,0.1487613]
[1743847170267,0.0618105,83956.0,83955.0,0.1487613]
[1743847171378,0.0618105,83956.0,83955.0,0.1476013]
[1743847172878,0.0618105,83956.0,83955.0,0.1487213]
[1743847176384,0.0618105,83956.0,83955.0,0.0845213]
[1743847176571,0.1452108,83956.0,83955.0,0.00112]
[1743847176776,0.5060108,83956.0,83955.0,0.00112]
[1743847176969,0.1251071,83953.0,83950.0,0.041703]
[1743847177169,0.1766053,83952.0,83951.0,0.0834053]
[1743847180275,0.1772853,83952.0,83951.0,0.0834053]
[1743847182694,0.0417032,83950.0,83939.0,0.0417083]
[1743847182986,0.0834083,83948.0,83947.0,0.0834092]
[1743847183186,0.08452831,83948.0,83947.0,0.0845292]
[1743847183386,0.14852831,83948.0,83947.0,0.0845292]
[1743847186191,0.0834122,83944.0,83943.0,0.35749364]
[1743847186590,0.0834112,83946.0,83945.0,0.125115]
[1743847186981,0.1479112,83946.0,83945.0,0.125115]
[1743847188393,0.1479112,83946.0,83945.0,0.0417056]
[1743847188587,0.08342,83937.0,83936.0,0.083418]
[1743847188793,0.485927,83939.0,83938.0,0.0834182]
[1743847189195,0.402509,83939.0,83938.0,0.0834182]
[1743847189493,0.467209,83939.0,83938.0,0.0834182]
[1743847190192,0.467849,83939.0,83938.0,0.0842182]
[1743847195699,0.467849,83939.0,83938.0,0.1169182]
[1743847196396,0.42614,83939.0,83938.0,0.1494182]
[1743847197798,0.06534,83939.0,83938.0,0.1494182]
[1743847197998,0.42614,83939.0,83938.0,0.1494182]
[1743847200097,0.39454,83939.0,83938.0,0.1494182]
[1743847200294,0.39454,83939.0,83938.0,0.1815182]
[1743847200487,0.36144,83939.0,83938.0,0.1815182]
[1743847200684,0.00064,83939.0,83938.0,0.1815182]
[1743847200900,0.05032,83944.0,83943.0,0.0834132]
[1743847201091,0.05108,83944.0,83943.0,0.0841732]
[1743847201288,0.05108,83944.0,83943.0,0.1472732]
[1743847201492,0.00076,83944.0,83943.0,0.1472732]
[1743847207192,8e-05,83945.0,83944.0,0.0834122]
[1743847207392,8e-05,83945.0,83944.0,0.0844122]
[1743847207592,8e-05,83945.0,83944.0,0.1462122]
[1743847207796,0.00017835,83947.0,83946.0,0.0834102]
[1743847208110,0.0300105,83956.0,83955.0,0.0834013]
[1743847208296,0.0300105,83956.0,83955.0,0.0844013]
[1743847208496,0.1065769,83960.0,83959.0,0.0833973]
[1743847208691,8e-05,83964.0,83963.0,0.0833933]
[1743847209002,0.02517764,83964.0,83963.0,0.4451933]
[1743847209194,8e-05,83966.0,83965.0,0.1250869]
[1743847209391,0.02564133,83966.0,83965.0,0.1260869]
[1743847212496,0.02556133,83966.0,83965.0,0.1260869]
[1743847212701,8e-05,83967.0,83966.0,0.0833904]
[1743847212899,0.02524997,83967.0,83966.0,0.0843904]
[1743847213100,8e-05,83967.0,83966.0,0.0843904]
[1743847216212,0.02624878,83967.0,83966.0,0.0843904]
[1743847216404,8e-05,83967.0,83966.0,0.0843904]
[1743847219108,0.41692731,83978.0,83977.0,0.0833794]
[1743847219313,0.41692731,83978.0,83977.0,0.0844194]
[1743847219514,0.41692731,83978.0,83977.0,0.1155194]
[1743847220300,0.02542731,83978.0,83977.0,0.1155194]
[1743847220506,0.0328,83983.0,83981.0,0.0416877]
[1743847220706,8e-05,83982.0,83981.0,0.0426877]
[1743847221007,0.03178,83982.0,83981.0,0.0426877]
[1743847221908,8e-05,83982.0,83981.0,0.0426877]
[1743847224615,0.1152545,83982.0,83981.0,0.0426877]
[1743847225015,0.03188,83982.0,83981.0,0.0426877]
[1743847225623,0.06458,83982.0,83981.0,0.0426877]
[1743847226217,0.1479545,83982.0,83981.0,0.0426877]
[1743847226417,0.17339971,83982.0,83981.0,0.001]
[1743847226611,0.0833755,83981.0,83980.0,0.0833761]
[1743847227021,0.1250716,83976.0,83975.0,0.0833805]
[1743847227223,0.0416902,83976.0,83975.0,0.0843805]